bitfinex-derivatives/quotes_ETHF0:USTF0_20251226
["timestamp","ask_amount","ask_price","bid_price","bid_amount"]
[1766767270044,0.90851513,2924.9,2924.0,4.824]
[1766767270244,0.00512847,2924.7,2924.2,0.00512847]
[1766767271147,0.00512847,2924.7,2923.7,4.827]
[1766767272245,0.90851513,2924.6,2923.7,4.827]
[1766767274047,0.00512847,2924.7,2923.7,4.827]
[1766767274850,0.9136436,2924.7,2923.7,4.827]
[1766767276457,0.9136436,2924.7,2923.6,4.842]
[1766767278650,0.00512847,2924.7,2923.6,4.842]
[1766767278856,0.00512847,2924.7,2923.6,5.75051513]
[1766767280161,0.00247014,2925.0,2923.7,0.90851513]
[1766767280362,0.91098527,2925.0,2923.6,4.842]
[1766767280757,0.90851513,2924.8,2923.6,4.842]
[1766767281262,0.00512847,2924.5,2923.9,0.00512847]
[1766767281464,0.9136436,2924.5,2923.9,0.00512847]
[1766767281663,0.00512847,2924.5,2923.9,0.00512847]
[1766767288066,0.00512847,2924.5,2923.8,4.869]
[1766767288067,0.90851513,2924.1,2922.9,0.17119]
[1766767288264,0.90851513,2924.4,2923.0,4.878]
[1766767289364,0.90851513,2924.4,2923.1,1.07969513]
[1766767289561,0.00512847,2924.5,2923.4,0.90851513]
[1766767289769,0.00512847,2924.5,2923.3,0.17117]
[1766767290066,0.00512847,2924.5,2923.3,5.61785447]
[1766767290366,0.00512847,2924.5,2923.3,1.07968513]
[1766767290566,0.00512847,2924.5,2923.5,0.17116]
[1766767290866,0.90851513,2924.9,2923.6,4.878]
[1766767291868,0.00512847,2924.5,2924.0,0.00512847]
[1766767292769,0.00247014,2925.0,2924.0,0.00512847]
[1766767293465,0.00247014,2925.0,2924.1,0.90851513]
[1766767293961,40.8,2926.1,2924.1,0.90851513]
[1766767294169,0.90851513,2925.7,2924.1,0.90851513]
[1766767294562,0.90851513,2925.7,2924.4,0.90851513]
[1766767294866,0.00512847,2925.3,2924.5,4.877]
[1766767295061,0.90851513,2925.9,2924.5,4.877]
[1766767295866,0.90851513,2925.6,2924.5,4.877]
[1766767296170,0.00512847,2925.3,2924.5,4.877]
[1766767297666,0.00334423,2925.6,2924.5,5.78551513]
[1766767298069,0.00334423,2925.6,2924.5,4.877]
[1766767298269,0.00334423,2925.6,2924.2,0.17112]
[1766767298574,0.90851513,2925.1,2924.3,4.875]
[1766767298769,0.00512847,2925.0,2924.3,4.875]
[1766767299472,0.00334423,2925.6,2924.3,5.78351513]
[1766767300177,0.00334423,2925.6,2924.6,0.90851513]
[1766767300381,0.00334423,2925.6,2924.6,0.91268847]
[1766767300674,0.00341896,2925.4,2924.6,0.91268847]
[1766767301276,0.00341896,2925.4,2924.6,0.00417334]
[1766767301675,0.00341896,2925.4,2924.7,4.875]
[1766767301872,0.00341896,2925.4,2924.6,0.00417334]
[1766767302574,0.00341896,2925.4,2924.0,0.00512847]
[1766767303470,0.00341896,2925.4,2924.0,0.00882405]
[1766767303877,0.17448896,2925.4,2924.0,0.00882405]
[1766767304074,1.30703463,2925.2,2923.4,3.576]
[1766767304973,1.30703463,2925.2,2924.0,0.00512847]
[1766767307377,1.47811463,2925.2,2924.0,0.00512847]
[1766767307573,1.30703463,2925.2,2923.4,3.57911407]
[1766767307779,0.1711,2924.9,2923.4,0.00311407]
[1766767308776,0.1711,2924.9,2923.9,0.00512847]
[1766767309675,0.1711,2924.9,2923.4,0.00311407]
[1766767310679,0.1711,2924.9,2923.9,0.00512847]
[1766767311378,0.1711,2924.9,2923.4,0.00311407]
[1766767311872,0.1711,2924.8,2923.4,0.00311407]
[1766767312380,0.1711,2924.8,2923.8,0.00512847]
[1766767313067,0.1711,2924.8,2923.8,2.847e-05]
[1766767314577,0.17111,2924.7,2923.8,2.847e-05]
[1766767314879,0.17111,2924.7,2921.9,0.12178208]
[1766767314880,0.17113,2924.3,2922.2,0.17125]
[1766767315775,6.377,2924.5,2923.0,0.00512847]
[1766767315776,0.00512847,2923.6,2923.0,0.00512847]
[1766767315971,0.00512847,2923.6,2922.3,0.00249804]
[1766767319386,0.17630847,2923.6,2922.3,0.00249804]
[1766767321985,0.00512847,2923.6,2922.3,0.00249804]
[1766767335090,0.17629847,2923.6,2922.3,0.00249804]
[1766767335786,0.17118,2923.5,2922.3,0.00249804]
[1766767336085,0.00244135,2923.5,2921.3,0.1713]
[1766767337179,0.00244135,2923.5,2921.3,0.17420043]
[1766767337383,0.17121,2923.0,2921.3,0.17420043]
[1766767342391,0.17122,2922.7,2921.3,0.00290043]
[1766767349003,0.17122,2922.7,2921.0,1.27838366]
[1766767350104,0.17122,2922.7,2921.0,1.28091187]
[1766767354911,0.17125,2922.3,2921.0,0.00252821]
[1766767355109,0.00512847,2921.9,2921.0,0.00252821]
[1766767356008,0.00512847,2921.9,2920.3,5.03636]
[1766767356208,0.96653753,2921.8,2920.3,5.03636]
[1766767356408,0.00512847,2921.9,2920.3,5.03636]
[1766767356609,0.96588891,2921.8,2920.3,5.03636]
[1766767356910,0.00512847,2921.9,2920.3,5.03636]
[1766767357113,0.96588793,2921.8,2920.3,5.03885841]
[1766767357314,0.00512847,2921.9,2920.3,5.03885841]
[1766767357509,0.00512847,2921.9,2920.3,4.86749841]
[1766767357710,0.00512847,2921.9,2920.3,0.00249841]
[1766767358111,0.17128,2921.8,2920.3,0.00249841]
[1766767362608,0.04109149,2921.1,2920.3,0.00249841]
[1766767362812,0.04393431,2921.1,2920.3,0.00249841]
[1766767363420,3.431e-05,2921.1,2920.3,0.00249841]
[1766767366022,3.431e-05,2921.1,2920.3,0.17385841]
[1766767368718,3.431e-05,2921.1,2920.4,4.922]
[1766767371627,3.431e-05,2921.1,2920.3,0.17385841]
[1766767371930,3.431e-05,2921.1,2920.4,4.933]
[1766767378028,0.17128,2921.8,2920.4,4.933]
[1766767378231,0.00512847,2921.9,2920.4,4.933]
[1766767378430,0.00512847,2921.9,2920.4,5.10436]
[1766767378630,0.00512847,2921.9,2920.5,0.17135]
[1766767379334,0.00842493,2921.9,2920.5,0.17135]
[1766767380932,0.00842493,2921.9,2920.6,4.959]
[1766767384240,0.00842493,2921.9,2920.6,5.13034]
[1766767385439,0.00842493,2921.9,2920.7,4.957]
[1766767387141,0.00842493,2921.9,2920.7,5.12834]
[1766767387345,0.00842493,2921.9,2920.8,4.38174684]
[1766767390042,0.00842493,2921.9,2920.8,4.55307684]
[1766767394348,0.00842493,2921.9,2920.8,0.17133]
[1766767396753,0.9097432,2921.8,2920.8,0.17133]
[1766767396952,0.9097432,2921.8,2920.9,4.964]
[1766767399055,0.00842493,2921.9,2920.9,4.964]
[1766767403256,0.00842493,2921.9,2920.9,5.8737432]
[1766767403758,0.00842493,2921.9,2920.9,4.964]
[1766767403956,0.9097432,2921.7,2921.0,4.965]
[1766767404360,0.91816813,2921.9,2921.0,4.965]
[1766767406156,0.00842493,2921.9,2921.0,4.965]
[1766767407660,40.97121,2923.0,2921.1,0.9097432]
[1766767407859,0.9097432,2922.7,2921.1,0.9097432]
[1766767408257,0.9097432,2922.4,2921.1,0.9097432]
[1766767408661,0.00512847,2922.0,2921.5,0.00512847]
[1766767415659,0.00512847,2922.0,2921.5,0.00074514]
[1766767417069,0.9097432,2921.8,2921.3,4.961]
[1766767419767,0.00512847,2922.0,2921.3,4.961]
[1766767422282,0.00512847,2922.0,2920.4,0.17136]
[1766767422574,0.9097432,2921.7,2920.5,4.96]
[1766767423469,0.00512847,2922.0,2920.5,5.13135]
[1766767423669,0.91487167,2922.0,2920.5,5.13135]
[1766767424378,0.91487167,2922.0,2920.5,6.0410932]
[1766767425079,0.91487167,2922.0,2920.5,5.13135]
[1766767430280,0.91487167,2922.0,2920.6,5.6178069]
[1766767431280,0.91487167,2922.0,2920.7,0.17134]
[1766767432176,0.91487167,2922.0,2920.9,1.0810732]
[1766767432177,0.00512847,2922.0,2920.9,1.0810732]
[1766767432478,0.9097432,2922.3,2921.2,0.0051]
[1766767432682,0.9097432,2922.3,2921.3,4.963]
[1766767433282,0.002707,2922.4,2921.3,4.963]
[1766767433486,0.00512847,2922.1,2921.3,4.963]
[1766767433682,7e-06,2922.4,2921.3,0.1713]
[1766767433683,0.9097502,2922.4,2921.3,0.1713]
[1766767433884,0.9097502,2922.4,2921.4,4.963]
[1766767434289,0.9097502,2922.4,2921.3,0.1713]
[1766767434491,0.9097502,2922.4,2921.4,4.963]
[1766767434789,0.00512847,2922.2,2921.4,4.963]
[1766767436394,0.9097432,2922.1,2921.4,4.963]
[1766767437496,0.00512847,2922.2,2921.4,4.963]
[1766767438799,0.9097432,2922.1,2921.4,4.963]
[1766767440396,0.9097432,2922.1,2921.2,0.0051]
[1766767440593,0.9097432,2921.5,2920.6,1.5081866]
[1766767440797,0.9097432,2921.5,2920.7,4.962]
[1766767440991,0.9097432,2921.8,2920.7,4.962]
[1766767441400,0.9097432,2921.8,2920.3,0.17385841]
[1766767441700,0.9097432,2921.5,2920.8,0.00512847]
[1766767441900,0.9097432,2921.8,2920.8,0.00512847]
[1766767446098,0.91015988,2922.0,2920.8,0.00512847]
[1766767446505,0.91015988,2921.6,2920.3,0.00249841]
[1766767446809,0.91015988,2921.5,2919.7,5.23494618]
[1766767446997,0.91015988,2921.5,2919.7,4.962]
[1766767447695,0.91015988,2921.5,2919.7,4.9645135]
[1766767449298,0.91015988,2921.5,2919.7,5.1359135]
[1766767452910,0.1713,2921.4,2919.7,5.1359135]
[1766767469525,0.1713,2921.4,2919.7,0.1739135]
[1766767471822,0.1713,2921.4,2919.7,1.64888418]
[1766767474636,0.91015988,2921.3,2919.7,1.64888418]
[1766767475034,0.91015988,2921.3,2919.7,6.27488418]
[1766767475729,0.91015988,2921.3,2919.7,1.64888418]
[1766767475931,0.91015988,2921.3,2919.7,6.27388418]
[1766767478633,0.91015988,2921.3,2919.7,1.64888418]
[1766767478836,0.91015988,2921.3,2919.7,6.60288418]
[1766767479828,0.96910215,2921.2,2919.7,6.60288418]
[1766767480031,0.91015988,2921.3,2919.7,6.60288418]
[1766767480230,0.96913707,2921.2,2919.7,6.60288418]
[1766767480536,0.91015988,2921.3,2919.7,6.60288418]
[1766767480832,0.96908944,2921.2,2919.7,6.60288418]
[1766767481135,0.91015988,2921.3,2919.7,6.60288418]
[1766767481337,0.96907196,2921.2,2919.7,6.60288418]
[1766767481536,0.91015988,2921.3,2919.7,6.60288418]
[1766767481834,0.96907055,2921.2,2919.7,6.60288418]
[1766767482029,0.91015988,2921.3,2919.7,6.60288418]
[1766767490141,0.1713,2921.4,2919.7,6.60288418]
[1766767490340,0.96835361,2921.3,2919.7,6.60288418]
[1766767490540,0.1713,2921.4,2919.7,6.60288418]
[1766767490742,0.96835861,2921.3,2919.7,6.60288418]
[1766767490938,0.1713,2921.4,2919.7,6.60288418]
[1766767491140,0.9683556,2921.3,2919.7,6.60288418]
[1766767491334,0.1713,2921.4,2919.7,6.60288418]
[1766767491534,0.96835136,2921.3,2919.7,6.60288418]
[1766767491735,0.1713,2921.4,2919.7,6.60288418]
[1766767491936,0.96834506,2921.3,2919.7,6.60288418]
[1766767492134,0.1713,2921.4,2919.7,6.60288418]
[1766767492341,0.96834409,2921.3,2919.7,6.60288418]
[1766767492543,0.1713,2921.4,2919.7,6.60288418]
[1766767492736,0.96834267,2921.3,2919.7,6.60288418]
[1766767492936,0.1713,2921.4,2919.7,6.60288418]
[1766767493138,0.96834931,2921.3,2919.7,6.60288418]
[1766767493339,0.1713,2921.4,2919.7,6.60288418]
[1766767493643,0.96836758,2921.3,2919.7,6.60288418]
[1766767493843,0.1713,2921.4,2919.7,6.60288418]
[1766767494040,0.96850568,2921.3,2919.7,6.60288418]
[1766767494240,0.1713,2921.4,2919.7,6.60288418]
[1766767494442,0.96850849,2921.3,2919.7,6.60288418]
[1766767494643,0.1713,2921.4,2919.7,6.60288418]
[1766767494842,0.96850859,2921.3,2919.7,6.60288418]
[1766767495041,0.1713,2921.4,2919.7,6.60288418]
[1766767495242,0.96849979,2921.3,2919.7,6.60288418]
[1766767495442,0.1713,2921.4,2919.7,6.60288418]
[1766767495646,0.96850785,2921.3,2919.7,6.60288418]
[1766767495847,0.1713,2921.4,2919.7,6.60288418]
[1766767496042,0.96851792,2921.3,2919.9,0.17139]
[1766767496245,0.17127,2921.9,2919.8,4.35438809]
[1766767496442,0.96871391,2921.8,2920.0,4.35438809]
[1766767496643,0.17127,2921.9,2919.8,4.35438809]
[1766767496846,0.96972038,2921.8,2919.8,4.35438809]
[1766767497044,1.08142988,2921.9,2919.7,7.34164406]
[1766767497251,1.08142988,2921.9,2919.8,4.52098216]
[1766767497551,1.08142988,2921.9,2920.1,0.17138]
[1766767497747,0.91015988,2921.5,2919.7,1.47748418]
[1766767498042,0.91015988,2921.1,2919.8,4.955]
[1766767499943,1.08145988,2921.4,2919.8,4.955]
[1766767500250,0.96833492,2921.3,2919.8,4.955]
[1766767500441,1.08145988,2921.4,2919.8,4.955]
[1766767500644,0.96816662,2921.3,2919.8,4.955]
[1766767500939,1.08145988,2921.4,2919.8,4.955]
[1766767501145,0.96816189,2921.3,2919.7,0.0025135]
[1766767501447,0.91015988,2921.0,2919.7,0.0025135]
[1766767501655,0.00512847,2920.6,2919.7,0.0025135]
[1766767509351,0.91063507,2920.5,2919.7,4.9715135]
[1766767509955,0.00512847,2920.6,2919.7,4.9715135]
[1766767516763,2.847e-05,2920.6,2919.7,4.9715135]
[1766767517663,2.847e-05,2920.6,2919.9,0.00512847]
[1766767517962,0.91063507,2921.5,2920.2,0.91063507]
[1766767518159,0.17128,2921.7,2920.3,4.994]
[1766767518554,0.91063507,2922.1,2920.8,0.91063507]
[1766767518864,0.91063507,2922.3,2920.9,4.994]
[1766767519859,0.00512847,2921.9,2920.9,4.994]
[1766767520059,2.847e-05,2921.9,2920.9,4.994]
[1766767520859,0.91063507,2921.7,2920.2,0.91063507]
[1766767521067,0.91063507,2921.4,2920.3,4.993]
[1766767522361,0.91063507,2921.7,2920.3,4.993]
[1766767522959,0.91063507,2921.7,2920.4,4.993]
[1766767523962,0.91063507,2921.7,2920.4,5.90363507]
[1766767524163,2.847e-05,2921.9,2920.4,5.90363507]
[1766767525161,0.91063507,2921.7,2920.4,5.90363507]
[1766767527767,0.91063507,2921.7,2920.4,0.91063507]
[1766767528067,0.91063507,2921.4,2920.1,0.17137]
[1766767528361,0.91063507,2921.4,2920.2,4.991]
[1766767529464,2.847e-05,2921.9,2920.2,4.991]
[1766767529864,0.91063507,2921.6,2920.2,4.991]
[1766767531958,0.91063507,2921.0,2919.9,0.00512847]
[1766767532159,0.91063507,2921.0,2920.0,4.99]
[1766767532563,0.91063507,2921.0,2919.9,0.00512847]
[1766767537976,0.91063507,2921.2,2919.9,0.00512847]
[1766767539283,0.91063507,2920.9,2919.9,0.00512847]
[1766767543282,0.17129,2921.5,2919.9,0.00512847]
[1766767543481,0.91063507,2920.8,2919.9,0.00512847]
[1766767546382,0.91063507,2920.5,2919.9,0.00512847]
[1766767547579,40.8,2921.8,2919.0,4.25887321]
[1766767547580,0.91063507,2920.0,2919.0,4.25887321]
[1766767547783,0.91063507,2919.6,2918.6,4.998]
[1766767548483,0.00513743,2919.4,2918.8,0.00513743]
[1766767556790,0.00513743,2919.4,2918.5,0.02513]
[1766767557986,0.00513743,2919.4,2918.7,0.00513743]
[1766767558187,0.00513743,2919.4,2918.7,5.00513743]
[1766767559777,0.00348316,2919.6,2919.0,0.91063507]
[1766767560085,0.91063507,2920.0,2918.7,5.9157725]
[1766767560390,0.91063507,2919.7,2918.7,0.00513743]
[1766767560589,0.91063507,2919.7,2918.8,4.999]
[1766767560787,0.00513743,2919.5,2918.8,4.999]
[1766767560978,0.00797577,2919.5,2918.8,4.999]
[1766767561380,0.00797577,2919.5,2918.7,0.00513743]
[1766767561590,0.00797577,2919.5,2918.8,4.999]
[1766767561980,0.00797577,2919.5,2918.7,0.00513743]
[1766767562182,0.91063507,2919.3,2918.7,0.00513743]
[1766767563191,0.00797577,2919.5,2918.7,0.00513743]
[1766767564192,0.91063507,2919.4,2918.7,0.00513743]
[1766767564892,0.91063507,2919.4,2918.5,0.02886227]
[1766767565892,0.91063507,2919.4,2918.7,3.743e-05]
[1766767566093,0.91063507,2919.4,2918.5,0.02886227]
[1766767567789,0.91063507,2919.1,2918.5,0.02886227]
[1766767568400,0.00797577,2919.5,2918.5,0.02886227]
[1766767568694,0.91063507,2919.4,2918.5,0.02886227]
[1766767569398,0.00797577,2919.5,2918.5,0.02886227]
[1766767573901,0.91939927,2919.5,2917.5,0.17153]
[1766767574199,0.91939927,2919.5,2917.6,4.996]
[1766767574997,0.00797577,2919.5,2917.6,0.00417902]
[1766767575197,0.9114235,2919.1,2917.6,0.00417902]
[1766767576491,1.0828635,2919.1,2917.6,0.00417902]
[1766767581904,0.9114235,2918.1,2916.9,0.12244802]
[1766767582198,0.00513743,2917.8,2916.9,0.12244802]
[1766767582601,1.0828835,2918.7,2916.8,0.17157]
[1766767583000,1.0828835,2918.7,2916.8,0.17477972]
[1766767583799,0.00513743,2918.0,2917.5,0.00513743]
[1766767584597,0.00513743,2918.0,2917.0,5.003]
[1766767587003,0.00513743,2918.0,2917.0,5.013]
[1766767587206,0.00513743,2918.0,2916.8,0.00320972]
[1766767587393,0.00513743,2918.0,2916.6,5.013]
[1766767587394,0.9114235,2917.7,2916.6,5.013]
[1766767587805,0.00513743,2918.0,2916.6,5.013]
[1766767588506,0.00513743,2918.0,2916.6,5.01716777]
[1766767594509,0.00513743,2918.0,2916.7,4.6665323]
[1766767596011,0.17145,2918.8,2916.8,0.9114235]
[1766767596408,0.17145,2918.8,2916.9,4.47224747]
[1766767596906,0.17424834,2919.5,2917.8,0.9114235]
[1766767597113,0.17424834,2919.5,2918.4,0.00513743]
[1766767597114,0.00513743,2918.9,2918.4,0.00513743]
[1766767597505,0.17424834,2919.5,2918.4,0.00513743]
[1766767598522,0.00513743,2919.2,2918.4,0.00513743]
[1766767604512,0.00283834,2919.5,2918.4,0.00513743]
[1766767605516,0.00513743,2919.2,2918.4,0.00513743]
[1766767605815,0.00283834,2919.5,2918.4,0.00513743]
[1766767606211,0.00283834,2919.5,2918.5,5.009]
[1766767606720,0.00513743,2919.3,2918.5,5.009]
[1766767610916,0.00513743,2919.3,2918.4,0.00513743]
[1766767611119,0.00513743,2919.3,2918.5,5.007]
[1766767612015,0.00283834,2919.5,2918.5,5.007]
[1766767612216,0.17136,2920.4,2918.5,5.007]
[1766767612518,0.17136,2920.4,2918.6,0.17146]
[1766767613123,0.00513743,2919.8,2918.6,0.17146]
[1766767613324,0.00914835,2919.8,2918.7,4.40498355]
[1766767613525,0.00914835,2919.8,2918.7,4.4083011]
[1766767614119,0.17136,2920.4,2918.7,4.4083011]
[1766767615026,0.00341298,2919.8,2918.7,4.4083011]
[1766767615422,1.298e-05,2919.8,2918.7,4.4083011]
[1766767617423,1.298e-05,2919.8,2918.8,5.008]
[1766767617828,1.298e-05,2919.8,2918.9,4.61854815]
[1766767618032,0.00319695,2920.4,2919.2,0.17143]
[1766767618225,0.00319695,2920.4,2919.2,0.44411656]
[1766767618532,0.00319695,2920.4,2919.3,5.009]
[1766767619924,0.00319695,2920.4,2919.2,0.17143]
[1766767620127,0.00319695,2920.4,2919.3,4.56]
[1766767620319,0.00319695,2920.4,2918.7,0.00331755]
[1766767620519,0.00319695,2920.4,2918.8,5.009]
[1766767621725,0.00319695,2920.4,2918.7,0.00331755]
[1766767621930,0.00319695,2920.4,2918.8,5.012]
[1766767622121,0.00319695,2920.4,2918.7,0.00331755]
[1766767622318,0.00319695,2920.4,2918.8,5.013]
[1766767622522,0.17137,2920.3,2918.8,5.013]
[1766767622719,0.00319695,2920.4,2918.8,5.18445]
[1766767622921,0.00319695,2920.4,2918.9,5.014]
[1766767624028,0.00319695,2920.4,2919.2,0.17143]
[1766767625226,0.00319695,2920.4,2918.7,0.00331755]
[1766767625619,0.00319695,2920.4,2918.8,5.019]
[1766767626330,0.17455695,2920.4,2918.9,5.021]
[1766767626931,0.17455695,2920.4,2919.0,5.023]
[1766767628329,0.00319695,2920.4,2919.0,5.023]
[1766767628529,0.00319695,2920.4,2919.1,4.5446475]
[1766767630035,0.00319695,2920.4,2919.2,5.032]
[1766767631131,0.00319695,2920.4,2919.0,0.17144]
[1766767631336,0.00319695,2920.4,2919.1,5.034]
[1766767631535,0.00319695,2920.4,2919.1,4.41065841]
[1766767631735,0.00319695,2920.4,2919.0,0.17144]
[1766767631934,0.00319695,2920.4,2918.7,0.00331755]
[1766767631935,0.00319695,2920.4,2919.1,5.035]
[1766767632435,0.00319695,2920.4,2919.2,5.036]
[1766767633036,0.17455695,2920.4,2918.7,0.00331755]
[1766767633333,0.17137,2920.3,2918.8,5.037]
[1766767633830,0.00319695,2920.4,2918.9,5.038]
[1766767634031,0.00319695,2920.4,2918.7,0.00331755]
[1766767634234,0.00319695,2920.4,2918.8,5.04]
[1766767635236,0.17139,2920.0,2918.7,0.00331755]
[1766767635436,0.17139,2920.0,2918.8,5.043]
[1766767636542,0.17139,2920.0,2918.7,0.00331755]
[1766767636741,0.17139,2920.0,2918.8,5.046]
[1766767639340,0.00319695,2920.4,2918.8,5.046]
[1766767640042,0.00319695,2920.4,2918.8,5.21745]
[1766767640937,0.00319695,2920.4,2918.9,5.056]
[1766767643840,0.00319695,2920.4,2918.8,0.17145]
[1766767644048,0.00319695,2920.4,2918.9,5.067]
[1766767644645,0.00319695,2920.4,2918.8,0.17145]
[1766767644947,0.00319695,2920.4,2919.0,5.068]
[1766767647150,0.00319695,2920.4,2919.0,5.23944]
[1766767647842,0.00319695,2920.4,2919.1,4.56658989]
[1766767648038,0.17132,2921.1,2919.1,4.39515989]
[1766767648945,0.1742531,2921.1,2919.1,4.39515989]
[1766767649253,0.1742531,2921.1,2919.3,0.17142]
[1766767649451,0.1742531,2921.1,2919.9,0.00513743]
[1766767649751,0.1742531,2921.1,2920.0,5.08]
[1766767650051,0.17133,2920.9,2919.9,0.00513743]
[1766767651246,0.17134,2920.8,2918.8,0.17145]
[1766767651554,0.17134,2920.8,2918.9,9.49466273]
[1766767652349,0.00513743,2920.1,2919.6,0.00513743]
[1766767655550,0.17135,2920.6,2919.6,0.00513743]
[1766767657956,0.91082991,2920.4,2919.6,0.00513743]
[1766767659257,0.91082991,2920.1,2919.6,0.00513743]
[1766767661257,0.17135,2920.6,2919.6,0.00513743]
[1766767661258,0.91082991,2920.4,2919.6,0.00513743]
[1766767661959,0.17135,2920.6,2919.6,0.00513743]
[1766767670068,0.17135,2920.6,2918.9,0.17145]
[1766767670460,0.17135,2920.6,2919.0,5.074]
[1766767671165,0.00513743,2920.1,2919.5,0.00513743]
[1766767672364,0.0029331,2921.1,2919.5,0.00513743]
[1766767672557,0.97167869,2921.0,2919.5,0.00513743]
[1766767672866,0.97167869,2920.9,2919.5,0.00513743]
[1766767673063,0.97167869,2920.8,2919.5,0.00513743]
[1766767673264,0.1742531,2921.1,2919.5,0.00513743]
[1766767673464,0.97144135,2921.0,2919.5,0.00513743]
[1766767673758,1.14277135,2920.9,2919.5,0.00513743]
[1766767673966,0.97144135,2920.8,2919.5,0.00513743]
[1766767674170,0.17133,2920.9,2919.5,0.00513743]
[1766767677170,0.17133,2920.9,2919.6,5.074]
[1766767679364,0.0029331,2921.1,2919.6,5.074]
[1766767680364,0.0029331,2921.1,2919.5,0.17654743]
[1766767680561,0.0029331,2921.1,2919.6,5.073]
[1766767681564,0.0029331,2921.1,2919.5,0.17654743]
[1766767681765,0.0029331,2921.1,2919.5,5.24854743]
[1766767682066,0.91066026,2920.7,2919.5,5.24854743]
[1766767682667,0.91066026,2920.4,2919.5,0.00513743]
[1766767683176,0.91066026,2920.7,2919.5,0.00513743]
[1766767684278,0.91066026,2920.4,2919.5,0.00513743]
[1766767685369,0.91066026,2920.1,2919.5,0.00513743]
[1766767685575,0.91066026,2919.8,2919.0,1.51946036]
[1766767685778,0.91066026,2919.8,2919.0,6.59146036]
[1766767686576,0.91066026,2919.8,2919.1,0.00513743]
[1766767687566,0.00513743,2920.1,2919.1,0.00513743]
[1766767687763,0.91066026,2919.8,2919.1,0.00513743]
[1766767691177,0.00513743,2920.1,2919.1,0.00513743]
[1766767691374,0.91066026,2920.0,2919.1,0.00513743]
[1766767692377,0.00513743,2920.1,2919.1,0.00513743]
[1766767693077,0.91066026,2920.0,2919.2,5.092]
[1766767693979,0.00513743,2920.1,2919.2,5.092]
[1766767697583,0.17133,2920.9,2919.2,5.092]
[1766767699281,0.17133,2920.9,2919.1,0.17656743]
[1766767699483,0.17134,2920.8,2919.2,3.526]
[1766767700171,0.17134,2920.8,2919.1,0.17656743]
[1766767700377,0.17134,2920.7,2919.1,0.00513743]
[1766767700582,0.17134,2920.7,2919.1,3.80313743]
[1766767700786,0.17134,2920.7,2919.1,0.00513743]
[1766767700983,0.17134,2920.7,2919.2,5.101]
[1766767701484,0.17135,2920.6,2919.2,5.101]
[1766767701787,0.17135,2920.5,2919.1,0.00513743]
[1766767701983,0.17135,2920.5,2919.2,3.081]
[1766767702885,0.17135,2920.5,2919.1,0.00513743]
[1766767703090,0.17135,2920.5,2919.1,5.10513743]
[1766767703686,0.17135,2920.5,2919.1,0.00513743]
[1766767703887,0.17135,2920.5,2919.1,5.04613743]
[1766767710182,0.17132,2921.0,2919.1,5.04613743]
[1766767713899,0.91076168,2920.9,2919.1,5.04613743]
[1766767714398,1.08209168,2920.9,2919.2,5.096]
[1766767714599,0.17134,2920.8,2919.2,5.095]
[1766767715608,0.91076168,2920.5,2919.1,0.00513743]
[1766767715810,0.17134,2920.7,2919.1,0.00513743]
[1766767717200,0.91076168,2920.9,2919.1,0.00513743]
[1766767717201,1.08211168,2920.5,2919.1,0.00513743]
[1766767717505,0.17135,2920.5,2919.1,0.00513743]
[1766767720905,0.97037302,2920.9,2919.1,0.00513743]
[1766767721211,0.91076168,2920.9,2919.1,0.17656743]
[1766767724603,0.17132,2921.0,2919.2,0.17143]
[1766767725107,0.17132,2921.0,2919.3,4.4943759]
[1766767725508,0.17132,2921.0,2919.2,4.4943759]
[1766767725709,0.17132,2921.0,2919.1,1.50709121]
[1766767726102,0.0029331,2921.1,2919.5,0.17141]
[1766767732718,0.91076168,2921.0,2919.6,5.089]
[1766767734919,0.0029331,2921.1,2919.7,4.51786173]
[1766767735221,0.0029331,2921.1,2919.8,0.91076168]
[1766767735614,0.05958746,2922.2,2920.2,0.17137]
[1766767735814,41.79803302,2922.5,2920.9,0.00513743]
[1766767736025,1.13814084,2922.4,2920.9,0.00513743]
[1766767736216,0.91076168,2922.1,2920.9,0.00513743]
[1766767736712,0.91497082,2922.1,2920.9,0.00796126]
[1766767737418,0.91076168,2921.7,2920.4,5.088]
[1766767738218,0.00513743,2921.3,2920.8,0.00513743]
[1766767744025,0.00420914,2922.1,2920.8,0.00513743]
[1766767747425,0.91076168,2921.9,2920.8,0.00513743]
[1766767753934,0.91030463,2921.2,2920.4,0.00379445]
[1766767754837,0.91030463,2921.5,2920.4,0.00379445]
[1766767755034,1.08157463,2921.9,2920.4,0.00379445]
[1766767755436,0.00513743,2921.4,2920.9,0.00513743]
[1766767755632,0.00420914,2922.1,2920.9,0.00513743]
[1766767756837,0.91030463,2922.0,2920.9,0.00513743]
[1766767758839,0.00420914,2922.1,2920.9,0.91544206]
[1766767759837,0.00420914,2922.1,2920.9,0.00513743]
[1766767760039,0.91030463,2922.0,2920.9,0.00513743]
[1766767764731,0.00420914,2922.1,2920.9,0.00513743]
[1766767764939,0.00420914,2922.1,2921.0,0.91030463]
[1766767765231,0.00420914,2922.1,2921.2,0.91030463]
[1766767765642,0.00420914,2922.1,2920.9,1.08677206]
[1766767766748,0.00420914,2922.1,2920.9,0.00513743]
[1766767766749,0.91030463,2921.7,2920.9,0.00513743]
[1766767768148,0.91030463,2921.8,2920.9,0.00513743]
[1766767768348,0.91451377,2922.1,2920.9,0.00513743]
[1766767769650,0.91030463,2921.5,2920.9,0.00513743]
[1766767769946,0.00513743,2921.5,2920.4,5.07779445]
[1766767770838,0.00513743,2921.5,2920.7,0.00513743]
[1766767772049,0.00420914,2922.1,2921.0,0.91030463]
[1766767772250,0.00420914,2922.1,2920.7,0.00513743]
[1766767772449,0.91030463,2921.9,2920.8,5.073]
[1766767777653,0.91030463,2921.9,2920.7,0.00513743]
[1766767777851,0.91030463,2921.9,2920.8,5.073]
[1766767782163,0.91030463,2921.9,2920.7,0.00513743]
[1766767782366,0.91030463,2921.9,2920.8,5.072]
[1766767784362,0.00420914,2922.1,2920.8,5.072]
[1766767784562,0.91030463,2921.9,2920.8,5.072]
[1766767789659,0.91030463,2921.6,2920.9,5.071]
[1766767794170,0.91030463,2921.9,2920.9,5.071]
[1766767794375,0.00420914,2922.1,2920.9,5.071]
[1766767794568,0.91451377,2922.1,2920.9,5.071]
[1766767796766,0.00420914,2922.1,2920.9,5.071]
[1766767797673,0.00420914,2922.1,2921.0,0.91030463]
[1766767798071,0.00420914,2922.1,2920.9,5.071]
[1766767801179,0.91030463,2921.9,2920.9,5.071]